[Event "Live Chess"]
[Site "Chess.com"]
[Date "2024.06.02"]
[Round "-"]
[White "f4nomore"]
[Black "RichardABates"]
[Result "0-1"]
[WhiteElo "1249"]
[BlackElo "2355"]
[TimeControl "300"]
[EndTime "0:21:00 PDT"]
[Termination "RichardABates won by resignation"]

1. d4 {[%clk 0:04:55.9]} 1... Nf6 {[%clk 0:04:58]} 2. Bg5 {[%clk 0:04:53.4]}
2... Ne4 {[%clk 0:04:55]} 3. Bf4 {[%clk 0:04:52.1]} 3... c5 {[%clk 0:04:53.4]}
4. c3 {[%clk 0:04:47.1]} 4... d5 {[%clk 0:04:50.2]} 5. e3 {[%clk 0:04:43.4]}
5... Qb6 {[%clk 0:04:44.1]} 6. b3 {[%clk 0:04:37.5]} 6... cxd4 {[%clk
0:04:40.9]} 7. exd4 {[%clk 0:04:33.7]} 7... e6 {[%clk 0:04:37.3]} 8. Bd3 {[%clk
0:04:29.1]} 8... Bd6 {[%clk 0:04:29.9]} 9. Bxd6 {[%clk 0:04:15.6]} 9... Nxd6
{[%clk 0:04:24.3]} 10. Nf3 {[%clk 0:04:12.4]} 10... Nc6 {[%clk 0:04:21]} 11. O-O
{[%clk 0:04:09.7]} 11... h6 {[%clk 0:04:16.8]} 12. Nbd2 {[%clk 0:04:08.1]} 12...
Bd7 {[%clk 0:04:11.2]} 13. c4 {[%clk 0:04:06.2]} 13... Nxd4 {[%clk 0:04:07.6]}
14. Rc1 {[%clk 0:03:55.2]} 14... dxc4 {[%clk 0:04:00.8]} 15. bxc4 {[%clk
0:03:51.3]} 15... N6f5 {[%clk 0:03:53.2]} 16. c5 {[%clk 0:03:45]} 16... Qc7
{[%clk 0:03:50.1]} 17. Bxf5 {[%clk 0:03:35.8]} 17... Nxf5 {[%clk 0:03:48.3]} 18.
Ne4 {[%clk 0:03:30.4]} 18... O-O {[%clk 0:03:39.3]} 19. Nd6 {[%clk 0:03:22.9]}
19... Bc6 {[%clk 0:03:36.4]} 20. Ne5 {[%clk 0:03:17.7]} 20... Rad8 {[%clk
0:03:31.2]} 21. Qh5 {[%clk 0:02:49.1]} 21... Nxd6 {[%clk 0:03:26]} 22. cxd6
{[%clk 0:02:41.6]} 22... Rxd6 {[%clk 0:03:23.9]} 23. Nxc6 {[%clk 0:02:28.8]}
23... Rxc6 {[%clk 0:03:22.2]} 24. Rb1 {[%clk 0:02:25.4]} 24... Rd8 {[%clk
0:03:17.7]} 25. a4 {[%clk 0:02:20.9]} 25... Rd5 {[%clk 0:03:15]} 26. Qf3 {[%clk
0:02:11.2]} 26... Rc3 {[%clk 0:03:10.5]} 27. Qe2 {[%clk 0:02:00.6]} 27... b6
{[%clk 0:03:06.8]} 28. h3 {[%clk 0:01:50.9]} 28... Rg5 {[%clk 0:03:00.5]} 29.
Qe4 {[%clk 0:01:26.2]} 29... Rxh3 {[%clk 0:02:51.7]} 30. Qa8+ {[%clk 0:01:15]}
30... Kh7 {[%clk 0:02:50]} 31. Qe4+ {[%clk 0:01:09.7]} 31... f5 {[%clk
0:02:44.8]} 0-1

[Event "Live Chess"]
[Site "Chess.com"]
[Date "2024.06.02"]
[Round "-"]
[White "vincents82"]
[Black "Crowded_House"]
[Result "1-0"]
[WhiteElo "2001"]
[BlackElo "1678"]
[TimeControl "300"]
[EndTime "0:21:43 PDT"]
[Termination "vincents82 won by resignation"]

1. e4 {[%clk 0:04:56.5]} 1... e6 {[%clk 0:04:59.6]} 2. d4 {[%clk 0:04:55.2]}
2... d5 {[%clk 0:04:59.3]} 3. Nd2 {[%clk 0:04:53.9]} 3... dxe4 {[%clk
0:04:58.2]} 4. Nxe4 {[%clk 0:04:53]} 4... Bd7 {[%clk 0:04:58]} 5. Nf3 {[%clk
0:04:50.8]} 5... Bc6 {[%clk 0:04:57.7]} 6. Ng3 {[%clk 0:04:50]} 6... Bd6 {[%clk
0:04:53.8]} 7. c3 {[%clk 0:04:48.2]} 7... Nf6 {[%clk 0:04:51.9]} 8. Bd3 {[%clk
0:04:47.5]} 8... h6 {[%clk 0:04:47.6]} 9. Be3 {[%clk 0:04:45.1]} 9... O-O {[%clk
0:04:45.5]} 10. Qd2 {[%clk 0:04:44.1]} 10... Nbd7 {[%clk 0:04:43.9]} 11. O-O-O
{[%clk 0:04:42.8]} 11... Bxf3 {[%clk 0:04:30.8]} 12. gxf3 {[%clk 0:04:41.5]}
12... Nb6 {[%clk 0:04:19.5]} 13. Ne4 {[%clk 0:04:39.4]} 13... Nbd5 {[%clk
0:04:09.8]} 14. Bxh6 {[%clk 0:04:30]} 14... Nxe4 {[%clk 0:03:51.1]} 15. fxe4
{[%clk 0:04:25.2]} 15... Ne7 {[%clk 0:03:35.7]} 16. Rhg1 {[%clk 0:04:16.6]}
16... Ng6 {[%clk 0:03:31]} 17. e5 {[%clk 0:04:15.7]} 17... Bxe5 {[%clk
0:03:26.1]} 18. dxe5 {[%clk 0:04:06.3]} 18... Qd5 {[%clk 0:03:17.9]} 19. Bxg6
{[%clk 0:03:53.4]} 19... fxg6 {[%clk 0:02:48]} 20. Qxd5 {[%clk 0:03:50.7]} 20...
exd5 {[%clk 0:02:46.7]} 21. Rxg6 {[%clk 0:03:49.5]} 21... c6 {[%clk 0:02:40.9]}
22. Rxg7+ {[%clk 0:03:47.4]} 22... Kh8 {[%clk 0:02:36.8]} 23. f4 {[%clk
0:03:45.2]} 23... Rg8 {[%clk 0:02:33.5]} 24. Rdg1 {[%clk 0:03:40.6]} 24... Rxg7
{[%clk 0:02:28.1]} 25. Rxg7 {[%clk 0:03:39.3]} 25... b6 {[%clk 0:02:25.8]} 26.
Rc7 {[%clk 0:03:31.6]} 26... c5 {[%clk 0:02:23.2]} 27. h4 {[%clk 0:03:28.1]}
27... d4 {[%clk 0:02:19.4]} 28. cxd4 {[%clk 0:03:26.6]} 28... cxd4 {[%clk
0:02:18.9]} 29. Rd7 {[%clk 0:03:25.6]} 29... Kg8 {[%clk 0:02:09.8]} 30. f5
{[%clk 0:03:24.1]} 30... Re8 {[%clk 0:02:05.4]} 31. e6 {[%clk 0:03:22.9]} 1-0

[Event "Live Chess"]
[Site "Chess.com"]
[Date "2024.06.02"]
[Round "-"]
[White "DenisOnopriichuk2003"]
[Black "Tatarinov_Maxim"]
[Result "0-1"]
[WhiteElo "1753"]
[BlackElo "2275"]
[TimeControl "300"]
[EndTime "0:21:57 PDT"]
[Termination "Tatarinov_Maxim won by resignation"]

1. d4 {[%clk 0:04:57.7]} 1... Nf6 {[%clk 0:04:58.5]} 2. Bf4 {[%clk 0:04:56.9]}
2... g6 {[%clk 0:04:56.8]} 3. e3 {[%clk 0:04:56.4]} 3... Bg7 {[%clk 0:04:56.3]}
4. Nf3 {[%clk 0:04:52.4]} 4... O-O {[%clk 0:04:55.8]} 5. Be2 {[%clk 0:04:51.2]}
5... d6 {[%clk 0:04:55.4]} 6. O-O {[%clk 0:04:50.6]} 6... c5 {[%clk 0:04:55]} 7.
c3 {[%clk 0:04:49.4]} 7... b6 {[%clk 0:04:54.2]} 8. Nbd2 {[%clk 0:04:47.8]} 8...
Ba6 {[%clk 0:04:52.5]} 9. Bxa6 {[%clk 0:04:44.4]} 9... Nxa6 {[%clk 0:04:52.4]}
10. Qe2 {[%clk 0:04:44]} 10... Nc7 {[%clk 0:04:51.1]} 11. Rfe1 {[%clk
0:04:43.4]} 11... Qc8 {[%clk 0:04:50.5]} 12. e4 {[%clk 0:04:41.6]} 12... Qa6
{[%clk 0:04:49.8]} 13. Qxa6 {[%clk 0:04:39.9]} 13... Nxa6 {[%clk 0:04:49.7]} 14.
e5 {[%clk 0:04:39.2]} 14... Nh5 {[%clk 0:04:48.2]} 15. Bg5 {[%clk 0:04:33.2]}
15... f6 {[%clk 0:04:47.2]} 16. exf6 {[%clk 0:04:32.1]} 16... exf6 {[%clk
0:04:47.1]} 17. Be3 {[%clk 0:04:31.1]} 17... f5 {[%clk 0:04:38.7]} 18. Ng5
{[%clk 0:04:27.6]} 18... f4 {[%clk 0:04:33.4]} 19. Ne6 {[%clk 0:04:21.9]} 19...
fxe3 {[%clk 0:04:32.3]} 20. Nxf8 {[%clk 0:04:18.9]} 20... exd2 {[%clk
0:04:28.6]} 21. Re2 {[%clk 0:04:13.9]} 21... Rxf8 {[%clk 0:04:26]} 22. Rxd2
{[%clk 0:04:12.9]} 22... cxd4 {[%clk 0:04:24.4]} 23. cxd4 {[%clk 0:04:11.6]}
23... Nf4 {[%clk 0:04:23]} 24. g3 {[%clk 0:04:10.5]} 0-1

[Event "Live Chess"]
[Site "Chess.com"]
[Date "2024.06.02"]
[Round "-"]
[White "JohanKjeldahl"]
[Black "Dhaydon19"]
[Result "1-0"]
[WhiteElo "1871"]
[BlackElo "2657"]
[TimeControl "300"]
[EndTime "0:22:02 PDT"]
[Termination "JohanKjeldahl won by checkmate"]

1. c4 {[%clk 0:04:57.4]} 1... c6 {[%clk 0:04:59]} 2. d4 {[%clk 0:04:55.3]} 2...
d5 {[%clk 0:04:58.6]} 3. Nc3 {[%clk 0:04:54]} 3... Nf6 {[%clk 0:04:58]} 4. Nf3
{[%clk 0:04:51.4]} 4... e6 {[%clk 0:04:57.4]} 5. Bg5 {[%clk 0:04:47.1]} 5... Be7
{[%clk 0:04:56.3]} 6. e3 {[%clk 0:04:46.2]} 6... Nbd7 {[%clk 0:04:55.9]} 7. Bd3
{[%clk 0:04:44.1]} 7... O-O {[%clk 0:04:55]} 8. O-O {[%clk 0:04:40.7]} 8... b6
{[%clk 0:04:54.2]} 9. cxd5 {[%clk 0:04:37.9]} 9... cxd5 {[%clk 0:04:51.4]} 10.
Rc1 {[%clk 0:04:35.1]} 10... a6 {[%clk 0:04:47.7]} 11. Qe2 {[%clk 0:04:27.8]}
11... Bb7 {[%clk 0:04:44.5]} 12. a3 {[%clk 0:04:21.5]} 12... b5 {[%clk
0:04:40.7]} 13. h3 {[%clk 0:04:08.7]} 13... Nb6 {[%clk 0:04:37.8]} 14. Ne5
{[%clk 0:04:04.3]} 14... Nc4 {[%clk 0:04:36.7]} 15. Bxc4 {[%clk 0:03:57.7]}
15... dxc4 {[%clk 0:04:34.5]} 16. Rcd1 {[%clk 0:03:50.9]} 16... Nd5 {[%clk
0:04:32]} 17. Bxe7 {[%clk 0:03:47.4]} 17... Qxe7 {[%clk 0:04:30.3]} 18. e4
{[%clk 0:03:45.4]} 18... Nf4 {[%clk 0:04:24.8]} 19. Qg4 {[%clk 0:03:34.4]} 19...
Ng6 {[%clk 0:04:15.1]} 20. Nxg6 {[%clk 0:03:29.1]} 20... hxg6 {[%clk 0:04:11.6]}
21. f3 {[%clk 0:03:27.3]} 21... Rad8 {[%clk 0:04:09.7]} 22. Rd2 {[%clk
0:03:21.1]} 22... Rd7 {[%clk 0:04:06.2]} 23. Rfd1 {[%clk 0:03:18.8]} 23... Rfd8
{[%clk 0:04:04.6]} 24. Qf4 {[%clk 0:03:08.7]} 24... g5 {[%clk 0:03:56.6]} 25.
Qe3 {[%clk 0:03:03.9]} 25... f6 {[%clk 0:03:55.3]} 26. Kf2 {[%clk 0:02:59.4]}
26... Kf7 {[%clk 0:03:51.1]} 27. d5 {[%clk 0:02:50.7]} 27... exd5 {[%clk
0:03:42.2]} 28. Nxd5 {[%clk 0:02:49.4]} 28... Bxd5 {[%clk 0:03:40.5]} 29. Rxd5
{[%clk 0:02:47.9]} 29... Rxd5 {[%clk 0:03:39.2]} 30. Rxd5 {[%clk 0:02:46.7]}
30... Rxd5 {[%clk 0:03:36.4]} 31. exd5 {[%clk 0:02:45.7]} 31... Qxe3+ {[%clk
0:03:32.7]} 32. Kxe3 {[%clk 0:02:44.7]} 32... Ke7 {[%clk 0:03:32.2]} 33. Kd4
{[%clk 0:02:43.4]} 33... Kd6 {[%clk 0:03:31.1]} 34. g3 {[%clk 0:02:37.3]} 34...
g6 {[%clk 0:03:18.6]} 35. f4 {[%clk 0:02:31.7]} 35... gxf4 {[%clk 0:03:09]} 36.
gxf4 {[%clk 0:02:30.1]} 36... a5 {[%clk 0:03:06.4]} 37. a4 {[%clk 0:02:23.1]}
37... bxa4 {[%clk 0:02:52.1]} 38. Kxc4 {[%clk 0:02:21.3]} 38... g5 {[%clk
0:02:43.6]} 39. fxg5 {[%clk 0:02:18.3]} 39... fxg5 {[%clk 0:02:42.1]} 40. Kb5
{[%clk 0:02:09.7]} 40... Kxd5 {[%clk 0:02:39.6]} 41. Kxa4 {[%clk 0:02:07.5]}
41... Ke4 {[%clk 0:02:39.2]} 42. Kxa5 {[%clk 0:02:06.5]} 42... Kf3 {[%clk
0:02:38.9]} 43. b4 {[%clk 0:02:05.7]} 43... Kg3 {[%clk 0:02:38.6]} 44. b5 {[%clk
0:02:04.8]} 44... Kxh3 {[%clk 0:02:38.2]} 45. b6 {[%clk 0:02:03.9]} 45... g4
{[%clk 0:02:37.9]} 46. b7 {[%clk 0:02:03]} 46... g3 {[%clk 0:02:37.6]} 47. b8=Q
{[%clk 0:02:01.1]} 47... g2 {[%clk 0:02:37.2]} 48. Qh8+ {[%clk 0:01:58]} 48...
Kg3 {[%clk 0:02:36.3]} 49. Qg7+ {[%clk 0:01:55.6]} 49... Kf2 {[%clk 0:02:35.5]}
50. Qf6+ {[%clk 0:01:53.3]} 50... Ke3 {[%clk 0:02:33.2]} 51. Qg5+ {[%clk
0:01:51.7]} 51... Kf2 {[%clk 0:02:32.1]} 52. Qf4+ {[%clk 0:01:50.5]} 52... Ke2
{[%clk 0:02:31.5]} 53. Qg3 {[%clk 0:01:49.1]} 53... Kf1 {[%clk 0:02:28.9]} 54.
Qf3+ {[%clk 0:01:48.3]} 54... Kg1 {[%clk 0:02:28.3]} 55. Kb4 {[%clk 0:01:47.2]}
55... Kh2 {[%clk 0:02:27.7]} 56. Qf2 {[%clk 0:01:45]} 56... Kh3 {[%clk
0:02:26.7]} 57. Kc3 {[%clk 0:01:41.2]} 57... Kh2 {[%clk 0:02:25.7]} 58. Qh4+
{[%clk 0:01:39.5]} 58... Kg1 {[%clk 0:02:24.3]} 59. Kd2 {[%clk 0:01:37]} 59...
Kf1 {[%clk 0:02:23.3]} 60. Qf4+ {[%clk 0:01:35.2]} 60... Kg1 {[%clk 0:02:21.9]}
61. Ke2 {[%clk 0:01:32.1]} 61... Kh1 {[%clk 0:02:21.4]} 62. Qh4+ {[%clk
0:01:29.9]} 62... Kg1 {[%clk 0:02:21]} 63. Kf3 {[%clk 0:01:28.7]} 63... Kf1
{[%clk 0:02:20.7]} 64. Qf2# {[%clk 0:01:27.2]} 1-0

[Event "Live Chess"]
[Site "Chess.com"]
[Date "2024.06.02"]
[Round "-"]
[White "MaximKovalenko83"]
[Black "Greenbecker"]
[Result "0-1"]
[WhiteElo "2148"]
[BlackElo "1764"]
[TimeControl "300"]
[EndTime "0:23:19 PDT"]
[Termination "Greenbecker won by checkmate"]

1. e4 {[%clk 0:04:57.5]} 1... Nc6 {[%clk 0:04:56.3]} 2. d4 {[%clk 0:04:55.9]}
2... d5 {[%clk 0:04:54.8]} 3. e5 {[%clk 0:04:54.4]} 3... Bf5 {[%clk 0:04:53]} 4.
Nf3 {[%clk 0:04:52.8]} 4... e6 {[%clk 0:04:48.9]} 5. Bd3 {[%clk 0:04:51]} 5...
Nge7 {[%clk 0:04:45.7]} 6. O-O {[%clk 0:04:49.3]} 6... g6 {[%clk 0:04:42.7]} 7.
c3 {[%clk 0:04:47.3]} 7... Bg7 {[%clk 0:04:41.7]} 8. Na3 {[%clk 0:04:44.4]} 8...
O-O {[%clk 0:04:38]} 9. Nc2 {[%clk 0:04:42.3]} 9... f6 {[%clk 0:04:36.5]} 10.
Bxf5 {[%clk 0:04:40]} 10... Nxf5 {[%clk 0:04:34.9]} 11. exf6 {[%clk 0:04:38.9]}
11... Bxf6 {[%clk 0:04:31.2]} 12. Re1 {[%clk 0:04:37.9]} 12... Qd6 {[%clk
0:04:16.8]} 13. Ne3 {[%clk 0:04:32.7]} 13... Nxe3 {[%clk 0:04:14.4]} 14. Bxe3
{[%clk 0:04:32.3]} 14... e5 {[%clk 0:04:08.6]} 15. dxe5 {[%clk 0:04:27.2]} 15...
Nxe5 {[%clk 0:04:06.5]} 16. Bh6 {[%clk 0:04:20.2]} 16... Rf7 {[%clk 0:03:54.3]}
17. Ng5 {[%clk 0:04:11.1]} 17... Bxg5 {[%clk 0:03:41.2]} 18. Bxg5 {[%clk
0:04:08.8]} 18... Raf8 {[%clk 0:03:38]} 19. f3 {[%clk 0:04:06.4]} 19... Rxf3
{[%clk 0:03:29.6]} 20. gxf3 {[%clk 0:03:54]} 20... Nxf3+ {[%clk 0:03:27.4]} 21.
Kh1 {[%clk 0:03:53.3]} 21... Qxh2# {[%clk 0:03:23.3]} 0-1

[Event "Live Chess"]
[Site "Chess.com"]
[Date "2024.06.02"]
[Round "-"]
[White "Crowded_House"]
[Black "SimonBoy1"]
[Result "1/2-1/2"]
[WhiteElo "1675"]
[BlackElo "1530"]
[TimeControl "300"]
[EndTime "0:23:42 PDT"]
[Termination "Game drawn by repetition"]

1. d4 {[%clk 0:04:56.9]} 1... d5 {[%clk 0:04:51.5]} 2. Bg5 {[%clk 0:04:55.9]}
2... h6 {[%clk 0:04:46.4]} 3. Bh4 {[%clk 0:04:54.3]} 3... Nf6 {[%clk 0:04:39.3]}
4. e3 {[%clk 0:04:51.8]} 4... e6 {[%clk 0:04:38.3]} 5. Nf3 {[%clk 0:04:50.3]}
5... Be7 {[%clk 0:04:37.1]} 6. Nbd2 {[%clk 0:04:49.3]} 6... c6 {[%clk
0:04:36.7]} 7. Bd3 {[%clk 0:04:48]} 7... O-O {[%clk 0:04:36.3]} 8. O-O {[%clk
0:04:46.9]} 8... Nbd7 {[%clk 0:04:35.9]} 9. Re1 {[%clk 0:04:46.1]} 9... b6
{[%clk 0:04:35.5]} 10. c3 {[%clk 0:04:45.6]} 10... Bb7 {[%clk 0:04:35.1]} 11.
Qc2 {[%clk 0:04:45.2]} 11... Rc8 {[%clk 0:04:33.3]} 12. e4 {[%clk 0:04:44.7]}
12... dxe4 {[%clk 0:04:30.9]} 13. Nxe4 {[%clk 0:04:43.7]} 13... c5 {[%clk
0:04:28.8]} 14. dxc5 {[%clk 0:04:37.2]} 14... Bxc5 {[%clk 0:04:22.7]} 15. Nxf6+
{[%clk 0:04:29.4]} 15... Nxf6 {[%clk 0:04:21.2]} 16. Bxf6 {[%clk 0:04:28.2]}
16... Qxf6 {[%clk 0:04:19.9]} 17. Be4 {[%clk 0:04:27.3]} 17... Ba6 {[%clk
0:04:12.2]} 18. Bd3 {[%clk 0:04:14.9]} 18... Bb7 {[%clk 0:04:09]} 19. Be4 {[%clk
0:04:12.9]} 19... Ba6 {[%clk 0:04:07.9]} 20. Bd3 {[%clk 0:04:12.2]} 20... Bb7
{[%clk 0:04:07.2]} 1/2-1/2

[Event "Live Chess"]
[Site "Chess.com"]
[Date "2024.06.02"]
[Round "-"]
[White "wadsy27"]
[Black "KeithArkell"]
[Result "1/2-1/2"]
[WhiteElo "2582"]
[BlackElo "2408"]
[TimeControl "300"]
[EndTime "0:23:55 PDT"]
[Termination "Game drawn - insufficient material"]

1. Nf3 {[%clk 0:04:57.3]} 1... b5 {[%clk 0:04:58.5]} 2. g3 {[%clk 0:04:56.1]}
2... Bb7 {[%clk 0:04:57.8]} 3. Bg2 {[%clk 0:04:55.7]} 3... Nf6 {[%clk
0:04:57.2]} 4. O-O {[%clk 0:04:54.6]} 4... e6 {[%clk 0:04:56.5]} 5. d3 {[%clk
0:04:54.1]} 5... d5 {[%clk 0:04:55.1]} 6. Nbd2 {[%clk 0:04:50.3]} 6... Nbd7
{[%clk 0:04:54.1]} 7. e4 {[%clk 0:04:49.7]} 7... dxe4 {[%clk 0:04:52.2]} 8. Ng5
{[%clk 0:04:48.6]} 8... Nc5 {[%clk 0:04:51.3]} 9. Ngxe4 {[%clk 0:04:39.5]} 9...
Ncxe4 {[%clk 0:04:49.6]} 10. Nxe4 {[%clk 0:04:36.8]} 10... Rb8 {[%clk
0:04:48.5]} 11. Re1 {[%clk 0:04:24.1]} 11... Be7 {[%clk 0:04:47.1]} 12. a4
{[%clk 0:04:23.2]} 12... b4 {[%clk 0:04:45.6]} 13. Be3 {[%clk 0:04:07.3]} 13...
Nxe4 {[%clk 0:04:42.3]} 14. Bxe4 {[%clk 0:04:04.5]} 14... Bxe4 {[%clk
0:04:41.2]} 15. dxe4 {[%clk 0:04:04.2]} 15... Qxd1 {[%clk 0:04:36.2]} 16. Raxd1
{[%clk 0:04:03.5]} 16... a5 {[%clk 0:04:34.8]} 17. b3 {[%clk 0:04:02.8]} 17...
Bd6 {[%clk 0:04:19.5]} 18. Rd3 {[%clk 0:03:57.9]} 18... e5 {[%clk 0:04:17.9]}
19. Red1 {[%clk 0:03:53.7]} 19... Ke7 {[%clk 0:04:16.5]} 20. Rd5 {[%clk
0:03:52.8]} 20... Ra8 {[%clk 0:04:14.7]} 21. Kf1 {[%clk 0:03:40.7]} 21... f6
{[%clk 0:04:13.9]} 22. Ke2 {[%clk 0:03:39.4]} 22... Ra6 {[%clk 0:04:00]} 23. h4
{[%clk 0:03:37.3]} 23... h5 {[%clk 0:03:58.6]} 24. Rb5 {[%clk 0:03:16]} 24...
Rha8 {[%clk 0:03:56.4]} 25. Bc5 {[%clk 0:03:11.8]} 25... Rc6 {[%clk 0:03:53.2]}
26. Rd5 {[%clk 0:03:09.8]} 26... Bxc5 {[%clk 0:03:47.9]} 27. Rdxc5 {[%clk
0:03:08.6]} 27... Rxc5 {[%clk 0:03:46.3]} 28. Rxc5 {[%clk 0:03:08.1]} 28... Kd6
{[%clk 0:03:45.7]} 29. Rd5+ {[%clk 0:03:06.3]} 29... Ke6 {[%clk 0:03:45]} 30.
Kd3 {[%clk 0:03:03.3]} 30... c6 {[%clk 0:03:43.8]} 31. Rc5 {[%clk 0:03:01.3]}
31... Kd6 {[%clk 0:03:42.6]} 32. Kc4 {[%clk 0:02:59.8]} 32... Kc7 {[%clk
0:03:41.9]} 33. c3 {[%clk 0:02:43.5]} 33... bxc3 {[%clk 0:03:41.2]} 34. Kxc3
{[%clk 0:02:42.4]} 34... Kb6 {[%clk 0:03:39.3]} 35. Rc4 {[%clk 0:02:33.2]} 35...
Rd8 {[%clk 0:03:37.6]} 36. b4 {[%clk 0:02:28.9]} 36... axb4+ {[%clk 0:03:36.4]}
37. Rxb4+ {[%clk 0:02:27.7]} 37... Ka6 {[%clk 0:03:20.7]} 38. Kc4 {[%clk
0:02:06.7]} 38... Rd2 {[%clk 0:03:16.4]} 39. Kc5 {[%clk 0:02:04.8]} 39... Rxf2
{[%clk 0:03:12.6]} 40. Kxc6 {[%clk 0:02:04]} 40... Rf3 {[%clk 0:03:05.2]} 41.
Rb8 {[%clk 0:01:51.8]} 41... Rc3+ {[%clk 0:03:02.6]} 42. Kd5 {[%clk 0:01:50.5]}
42... Rxg3 {[%clk 0:03:01.7]} 43. Rh8 {[%clk 0:01:40.1]} 43... Ka5 {[%clk
0:02:57.8]} 44. Rxh5 {[%clk 0:01:14]} 44... Kxa4 {[%clk 0:02:56.9]} 45. Rh8
{[%clk 0:01:13.7]} 45... Kb4 {[%clk 0:02:41.4]} 46. h5 {[%clk 0:01:12.9]} 46...
Kc3 {[%clk 0:02:36.3]} 47. h6 {[%clk 0:01:09.1]} 47... gxh6 {[%clk 0:02:35.5]}
48. Rxh6 {[%clk 0:01:08.2]} 48... Rf3 {[%clk 0:02:32.2]} 49. Rh8 {[%clk
0:01:01.7]} 49... Kd2 {[%clk 0:02:19.9]} 50. Ra8 {[%clk 0:00:48]} 50... Ke3
{[%clk 0:02:16.2]} 51. Ra4 {[%clk 0:00:45.8]} 51... Kf4 {[%clk 0:02:14.3]} 52.
Ke6 {[%clk 0:00:45.1]} 52... Re3 {[%clk 0:02:09.7]} 53. Kxf6 {[%clk 0:00:22.3]}
53... Rxe4 {[%clk 0:02:08.3]} 54. Ra5 {[%clk 0:00:21.5]} 54... Re3 {[%clk
0:01:59.3]} 55. Rb5 {[%clk 0:00:20.2]} 55... e4 {[%clk 0:01:58.3]} 56. Rf5+
{[%clk 0:00:19.3]} 56... Kg3 {[%clk 0:01:52.9]} 57. Ke5 {[%clk 0:00:18.6]} 57...
Re1 {[%clk 0:01:50.9]} 58. Kd4 {[%clk 0:00:18]} 58... e3 {[%clk 0:01:50.1]} 59.
Kd3 {[%clk 0:00:17.4]} 59... e2 {[%clk 0:01:48.1]} 60. Kd2 {[%clk 0:00:10.5]}
60... Rf1 {[%clk 0:01:46.9]} 61. Re5 {[%clk 0:00:10.2]} 61... Kf3 {[%clk
0:01:46.3]} 62. Rxe2 {[%clk 0:00:08.8]} 62... Rf2 {[%clk 0:01:44.8]} 63. Rxf2+
{[%clk 0:00:08.1]} 63... Kxf2 {[%clk 0:01:44.4]} 1/2-1/2

[Event "Live Chess"]
[Site "Chess.com"]
[Date "2024.06.02"]
[Round "-"]
[White "Kyrylo7770"]
[Black "Duke_of_Bebington"]
[Result "1-0"]
[WhiteElo "1630"]
[BlackElo "1696"]
[TimeControl "300"]
[EndTime "0:24:22 PDT"]
[Termination "Kyrylo7770 won by resignation"]

1. d4 {[%clk 0:04:58.3]} 1... d5 {[%clk 0:04:58.5]} 2. Nf3 {[%clk 0:04:57.6]}
2... Nf6 {[%clk 0:04:56.1]} 3. Bg5 {[%clk 0:04:57.1]} 3... Ne4 {[%clk 0:04:54]}
4. Bh4 {[%clk 0:04:56.2]} 4... h6 {[%clk 0:04:51.3]} 5. e3 {[%clk 0:04:55.6]}
5... g5 {[%clk 0:04:49.2]} 6. Bg3 {[%clk 0:04:54.8]} 6... Nxg3 {[%clk
0:04:46.6]} 7. hxg3 {[%clk 0:04:54.5]} 7... Bg7 {[%clk 0:04:45.8]} 8. c3 {[%clk
0:04:53.5]} 8... Bf5 {[%clk 0:04:40]} 9. Bd3 {[%clk 0:04:52.7]} 9... Bxd3 {[%clk
0:04:36.4]} 10. Qxd3 {[%clk 0:04:52.6]} 10... Nd7 {[%clk 0:04:35]} 11. Qb5
{[%clk 0:04:48.6]} 11... c6 {[%clk 0:04:17.4]} 12. Qxb7 {[%clk 0:04:46.8]} 12...
O-O {[%clk 0:04:15.9]} 13. Qxc6 {[%clk 0:04:45.8]} 13... Rb8 {[%clk 0:04:12.6]}
14. b3 {[%clk 0:04:43.2]} 14... e6 {[%clk 0:04:10.9]} 15. Qa6 {[%clk 0:04:38.5]}
15... Qc7 {[%clk 0:04:04.2]} 16. Qd3 {[%clk 0:04:36.8]} 16... Rfc8 {[%clk
0:04:01.9]} 17. Nxg5 {[%clk 0:04:28.9]} 17... e5 {[%clk 0:03:52.9]} 18. Nh3
{[%clk 0:04:15.1]} 18... e4 {[%clk 0:03:46.8]} 19. Qd1 {[%clk 0:04:14.4]} 19...
Nf6 {[%clk 0:03:43.5]} 20. Nf4 {[%clk 0:04:12.2]} 20... Nh7 {[%clk 0:03:25.5]}
21. Qg4 {[%clk 0:04:09.4]} 21... Ng5 {[%clk 0:03:18.9]} 22. Nxd5 {[%clk
0:04:03.7]} 22... Qd8 {[%clk 0:03:09.1]} 23. c4 {[%clk 0:03:56.9]} 23... Rc6
{[%clk 0:03:05.4]} 24. Nd2 {[%clk 0:03:53.5]} 24... Rg6 {[%clk 0:03:03.5]} 25.
Qf5 {[%clk 0:03:44.2]} 1-0

[Event "Live Chess"]
[Site "Chess.com"]
[Date "2024.06.02"]
[Round "-"]
[White "ProfPoisson"]
[Black "MagnersCarlsberg2870"]
[Result "1-0"]
[WhiteElo "1314"]
[BlackElo "1812"]
[TimeControl "300"]
[EndTime "0:24:46 PDT"]
[Termination "ProfPoisson won by resignation"]

1. e4 {[%clk 0:04:55.5]} 1... e5 {[%clk 0:04:59]} 2. Nf3 {[%clk 0:04:52.9]} 2...
Nf6 {[%clk 0:04:57.8]} 3. Nxe5 {[%clk 0:04:50.3]} 3... Nc6 {[%clk 0:04:55.6]} 4.
Nxc6 {[%clk 0:04:48.8]} 4... dxc6 {[%clk 0:04:53.2]} 5. d3 {[%clk 0:04:48.7]}
5... Bc5 {[%clk 0:04:52.1]} 6. Be2 {[%clk 0:04:47.9]} 6... h5 {[%clk 0:04:51.2]}
7. h3 {[%clk 0:04:46.6]} 7... Qd6 {[%clk 0:04:44.7]} 8. c3 {[%clk 0:04:32.5]}
8... a5 {[%clk 0:04:42.9]} 9. d4 {[%clk 0:04:31.1]} 9... Ba7 {[%clk 0:04:37]}
10. e5 {[%clk 0:04:29.5]} 10... Qd5 {[%clk 0:04:31.7]} 11. exf6 {[%clk
0:04:22.5]} 11... gxf6 {[%clk 0:04:29.8]} 12. O-O {[%clk 0:04:12.7]} 12... Rg8
{[%clk 0:04:27.6]} 13. Bf3 {[%clk 0:04:10]} 13... Qd6 {[%clk 0:04:18.9]} 14. Nd2
{[%clk 0:04:04.7]} 14... Bxh3 {[%clk 0:04:17.2]} 15. Re1+ {[%clk 0:03:54.6]}
15... Kd7 {[%clk 0:04:15.3]} 16. Ne4 {[%clk 0:03:49.4]} 16... Qf8 {[%clk
0:04:04.8]} 17. Nxf6+ {[%clk 0:03:46.7]} 17... Kc8 {[%clk 0:04:02.4]} 18. Nxg8
{[%clk 0:03:41.2]} 18... Qxg8 {[%clk 0:04:00.9]} 19. Qe2 {[%clk 0:03:33.5]}
19... Bd7 {[%clk 0:03:56.7]} 20. Bf4 {[%clk 0:03:17.6]} 20... h4 {[%clk
0:03:53.4]} 21. Qe7 {[%clk 0:03:02.2]} 21... h3 {[%clk 0:03:45.6]} 22. Re5
{[%clk 0:02:42.9]} 22... hxg2 {[%clk 0:03:41.8]} 23. Bxg2 {[%clk 0:02:39.7]}
23... b6 {[%clk 0:03:35.2]} 24. Qg5 {[%clk 0:02:33.2]} 1-0